bitfinex-derivatives/quotes_SOLF0:USTF0_20241211
["timestamp","ask_amount","ask_price","bid_price","bid_amount"]
[1733898845143,2.2769,219.52,219.48,2.1]
[1733898845337,2.2769,219.52,219.49,2.1]
[1733898846242,7.01607798,219.53,219.49,2.1]
[1733898846441,2.277,219.51,219.49,2.1]
[1733898850041,2.2771,219.5,219.49,2.1]
[1733898850242,7.01607798,219.51,219.48,2.1]
[1733898850448,7.01607798,219.49,219.48,2.1]
[1733898851450,2.2771,219.5,219.48,2.1]
[1733898851943,7.01607798,219.51,219.48,2.1]
[1733898853939,2.2769,219.52,219.48,2.1]
[1733898854947,7.01607798,219.53,219.48,2.1]
[1733898855551,2.2769,219.52,219.48,2.1]
[1733898858545,7.01607798,219.53,219.45,7.01607798]
[1733898858744,1.3638,219.55,219.46,2.1]
[1733898858745,7.01607798,219.49,219.46,2.1]
[1733898860255,7.01607798,219.51,219.46,2.1]
[1733898861756,9.29307798,219.51,219.46,2.1]
[1733898866059,7.01607798,219.49,219.46,2.1]
[1733898867559,2.2773,219.48,219.46,2.1]
[1733898867958,7.01607798,219.49,219.46,2.1]
[1733898868563,7.01607798,219.47,219.46,2.1]
[1733898868856,7.01607798,219.47,219.37,4.2755]
[1733898868857,16.5961584,219.47,219.37,4.2755]
[1733898869055,7.01607798,219.43,219.38,2.1]
[1733898869261,2.2776,219.45,219.39,2.2781]
[1733898869460,7.01607798,219.48,219.4,7.01607798]
[1733898869863,9.29357798,219.46,219.4,9.29407798]
[1733898870860,7.01607798,219.46,219.39,5.47200327]
[1733898871061,2.2776,219.45,219.39,5.47200327]
[1733898871370,7.01607798,219.44,219.39,5.47200327]
[1733898871761,9.29387798,219.44,219.39,5.47200327]
[1733898872962,2.2778,219.44,219.39,5.47200327]
[1733898873361,2.2776,219.46,219.41,2.278]
[1733898873560,7.01607798,219.48,219.41,2.278]
[1733898873766,12.88884584,219.47,219.41,2.278]
[1733898873967,7.01607798,219.48,219.41,2.278]
[1733898874269,12.88884582,219.47,219.41,2.278]
[1733898874569,2.2776,219.45,219.41,2.278]
[1733898876066,7.01607798,219.48,219.41,2.278]
[1733898876272,2.2775,219.47,219.41,2.278]
[1733898877169,2.2771,219.5,219.44,7.01607798]
[1733898877370,12.89339415,219.49,219.45,2.1]
[1733898877571,2.2771,219.5,219.45,2.1]
[1733898877769,12.89537642,219.49,219.45,2.1]
[1733898878100,2.2771,219.5,219.45,2.1]
[1733898878569,2.2771,219.5,219.45,4.3776]
[1733898880276,2.2771,219.5,219.45,2.2776]
[1733898880476,2.2771,219.5,219.46,2.1]
[1733898882380,190.04996178,219.61,219.46,9.11607798]
[1733898882381,7.01607798,219.53,219.46,9.11607798]
[1733898882579,198.27603423,219.65,219.52,7.01607798]
[1733898882875,7.01607798,219.62,219.54,7.01607798]
[1733898883081,22.48422157,219.61,219.54,7.01607798]
[1733898883283,22.48422157,219.6,219.54,7.01607798]
[1733898883476,12.89538458,219.59,219.54,7.01607798]
[1733898883676,7.01607798,219.62,219.55,2.2765]
[1733898883677,9.29197798,219.62,219.55,2.2765]
[1733898883977,22.47340436,219.61,219.55,2.2765]
[1733898884176,9.29197798,219.62,219.55,2.2765]
[1733898884177,22.47340436,219.6,219.55,2.2765]
[1733898884477,12.8891853,219.59,219.55,2.2765]
[1733898884679,9.29197798,219.62,219.55,2.2765]
[1733898884976,22.46293955,219.61,219.55,2.2765]
[1733898885281,22.46293955,219.6,219.55,2.2765]
[1733898885480,12.88318445,219.59,219.55,2.2765]
[1733898885681,9.29197798,219.62,219.55,2.2765]
[1733898885881,22.45504808,219.61,219.55,2.2765]
[1733898886178,12.87865872,219.6,219.55,2.2765]
[1733898886383,2.276,219.6,219.54,7.01607798]
[1733898887884,7.01607798,219.58,219.53,2.1]
[1733898888288,7.01607798,219.58,219.51,9.29297798]
[1733898888487,7.01607798,219.58,219.52,2.1]
[1733898888687,2.2765,219.56,219.51,7.01607798]
[1733898888986,7.01607798,219.58,219.52,2.1]
[1733898889390,2.2765,219.56,219.52,2.1]
[1733898892285,7.01607798,219.58,219.52,2.1]
[1733898892482,7.01607798,219.6,219.52,2.1]
[1733898892687,7.01607798,219.6,219.53,7.01607798]
[1733898893586,2.2761,219.59,219.53,9.29277798]
[1733898895187,7.01607798,219.6,219.53,7.01607798]
[1733898895388,9.29207798,219.6,219.54,2.2766]
[1733898896985,7.01607798,219.6,219.53,7.01607798]
[1733898898588,2.2762,219.58,219.53,7.01607798]
[1733898899788,2.2762,219.58,219.54,2.1]
[1733898899984,7.01607798,219.6,219.54,2.1]
[1733898900286,2.2764,219.57,219.54,2.1]
[1733898901185,2.2764,219.56,219.54,2.1]
[1733898901585,7.01607798,219.56,219.54,2.1]
[1733898901786,2.2765,219.55,219.54,2.1]
[1733898903688,2.2764,219.57,219.54,2.1]
[1733898906288,7.01607798,219.58,219.47,1.4312]
[1733898906486,7.01607798,219.56,219.48,7.01607798]
[1733898906792,7.01607798,219.54,219.49,2.1]
[1733898907682,7.01607798,219.54,219.46,7.01607798]
[1733898907893,7.01607798,219.54,219.47,2.1]
[1733898908387,7.01607798,219.5,219.48,2.1]
[1733898908588,7.01607798,219.5,219.44,7.01607798]
[1733898908789,7.01607798,219.46,219.4,2.1]
[1733898909093,7.01607798,219.42,219.36,7.01607798]
[1733898909394,7.01607798,219.42,219.37,2.1]
[1733898909687,2.278,219.41,219.37,2.1]
[1733898910389,2.278,219.41,219.38,2.1]
[1733898912088,7.01607798,219.42,219.38,2.1]
[1733898913592,9.29397798,219.42,219.38,2.1]
[1733898913888,7.01607798,219.42,219.38,2.1]
[1733898914492,7.01607798,219.4,219.34,0.17774]
[1733898914693,7.01607798,219.4,219.35,2.1]
[1733898915088,2.2782,219.39,219.35,2.1]
[1733898915287,7.01607798,219.4,219.36,2.1]
[1733898916094,7.01607798,219.4,219.34,0.17774]
[1733898916497,7.01607798,219.4,219.35,2.1]
[1733898916699,2.2783,219.38,219.35,2.1]
[1733898919307,2.2785,219.36,219.34,0.17774]
[1733898919507,2.2785,219.36,219.35,2.1]
[1733898919699,7.01607798,219.36,219.34,0.17774]
[1733898920602,2.2786,219.35,219.34,0.17774]
[1733898923103,2.1,219.45,219.34,0.17774]
[1733898923303,7.01607798,219.36,219.34,0.17774]
[1733898923900,2.1,219.46,219.34,0.17774]
[1733898924104,7.01607798,219.39,219.34,0.17774]
[1733898924703,9.29427798,219.39,219.34,0.17774]
[1733898925002,7.01607798,219.39,219.34,0.17774]
[1733898925305,2.2783,219.38,219.34,0.17774]
[1733898927602,2.2783,219.38,219.32,9.29497798]
[1733898929103,2.2783,219.38,219.32,2.2789]
[1733898930406,2.2783,219.38,219.33,7.01607798]
[1733898930609,9.66680326,219.49,219.35,7.01607798]
[1733898930909,7.01607798,219.44,219.36,9.11607798]
[1733898931806,9.29387798,219.44,219.38,2.2783]
[1733898933111,7.01607798,219.44,219.36,11.39447798]
[1733898933313,7.01607798,219.42,219.36,4.3784]
[1733898934709,9.29407798,219.42,219.36,4.3784]
[1733898936315,2.278,219.42,219.36,11.39447798]
[1733898937119,2.278,219.42,219.36,9.11607798]
[1733898937309,2.278,219.42,219.37,2.2784]
[1733898939120,7.01607798,219.44,219.36,2.1]
[1733898939415,2.278,219.41,219.36,4.3785]
[1733898939714,2.278,219.41,219.36,2.1]
[1733898939915,2.2779,219.42,219.37,2.2784]
[1733898940323,7.01607798,219.44,219.37,7.01607798]
[1733898940517,2.2777,219.44,219.39,2.2781]
[1733898940920,7.01607798,219.46,219.37,7.01607798]
[1733898941422,2.7662,219.49,219.39,2.2782]
[1733898941723,7.01607798,219.46,219.39,2.2782]
[1733898941915,2.7662,219.49,219.37,7.01607798]
[1733898942123,9.29367798,219.46,219.4,2.2781]
[1733898942329,9.29367798,219.46,219.41,2.1]
[1733898942724,2.2776,219.45,219.41,2.1]
[1733898943122,7.01607798,219.44,219.41,2.1]
[1733898943636,9.29377798,219.44,219.41,2.1]
[1733898945432,7.01607798,219.48,219.41,2.1]
[1733898946238,2.2774,219.47,219.43,2.2778]
[1733898947228,9.0194029,219.55,219.41,2.1]
[1733898947229,2.2776,219.45,219.41,2.1]
[1733898947435,9.0194029,219.55,219.41,2.1]
[1733898947736,7.01607798,219.46,219.41,2.1]
[1733898948735,9.29367798,219.46,219.41,2.1]
[1733898949341,9.29367798,219.46,219.41,4.378]
[1733898949543,9.29367798,219.46,219.41,2.1]
[1733898950841,9.29367798,219.46,219.42,2.2779]
[1733898951735,1.4745,219.55,219.41,9.11607798]
[1733898951940,7.01607798,219.5,219.43,7.01607798]
[1733898953633,9.29317798,219.5,219.45,2.2775]
[1733898953840,9.29317798,219.5,219.46,2.1]
[1733898954341,2.2772,219.49,219.46,2.1]
[1733898955440,7.01607798,219.48,219.46,2.1]
[1733898955638,7.01607798,219.48,219.45,2.1]
[1733898956339,2.2775,219.47,219.45,2.1]
[1733898956539,7.01607798,219.48,219.45,2.1]
[1733898958541,2.277,219.51,219.45,2.1]
[1733898958746,9.29307798,219.51,219.45,2.1]
[1733898959743,2.2772,219.5,219.45,2.1]
[1733898960344,7.01607798,219.49,219.45,2.1]
[1733898960742,2.2775,219.46,219.45,2.1]
[1733898961239,7.01607798,219.49,219.45,2.1]
[1733898962548,2.2773,219.48,219.45,2.1]
[1733898963449,9.29327798,219.49,219.45,2.1]
[1733898963846,2.2774,219.47,219.45,2.1]
[1733898964150,7.01607798,219.49,219.45,2.1]
[1733898964750,2.2775,219.46,219.45,2.1]
[1733898966453,2.2775,219.46,219.42,5.42963856]
[1733898966750,2.2776,219.45,219.43,2.1]
[1733898967050,7.01607798,219.47,219.43,2.1]
[1733898967647,1.4745,219.55,219.43,2.1]
[1733898967847,7.01607798,219.49,219.43,2.1]
[1733898968051,1.4745,219.55,219.43,2.1]
[1733898968349,7.01607798,219.5,219.43,2.1]
[1733898968550,7.01607798,219.5,219.43,9.11607798]
[1733898969148,7.01607798,219.52,219.44,2.2777]
[1733898969753,2.2772,219.49,219.44,2.2777]
[1733898970052,7.01607798,219.5,219.43,2.1]
[1733898970451,2.2773,219.48,219.43,2.1]
[1733898970653,2.2773,219.48,219.44,2.1]
[1733898971347,2.2775,219.46,219.44,2.1]
[1733898973253,9.29337798,219.48,219.44,2.1]
[1733898973445,2.2773,219.48,219.44,2.1]
[1733898973850,2.2774,219.47,219.44,2.1]
[1733898974051,7.01607798,219.48,219.44,2.1]
[1733898974446,2.2776,219.45,219.42,5.42963856]
[1733898974653,7.01607798,219.46,219.43,2.1]
[1733898974956,7.01607798,219.46,219.44,2.1]
[1733898975547,2.2776,219.45,219.44,2.1]
[1733898979554,7.01607798,219.46,219.41,5.52973163]
[1733898979757,7.01607798,219.42,219.41,2.1]
[1733898979953,19.9157956,219.42,219.41,2.1]
[1733898980254,19.9157956,219.42,219.33,3.6826]
[1733898980455,7.01607798,219.4,219.34,7.64285858]
[1733898980950,2.2784,219.37,219.34,7.64285858]
[1733898981358,2.2784,219.37,219.34,2.1]
[1733898982759,2.2786,219.36,219.32,0.19603]
[1733898982962,7.01607798,219.34,219.32,0.19603]
[1733898983460,2.2788,219.33,219.32,0.19603]
[1733898984459,2.2792,219.3,219.28,2.1]
[1733898984656,9.29527798,219.3,219.28,2.1]
[1733898984857,7.01607798,219.32,219.28,2.1]
[1733898985259,7.01607798,219.32,219.29,2.1]
[1733898985458,9.29497798,219.32,219.29,2.1]
[1733898985661,7.01607798,219.32,219.29,2.1]
[1733898986570,2.279,219.31,219.29,2.1]
[1733898988262,7.01607798,219.32,219.29,2.1]
[1733898989369,1.4784,219.36,219.29,2.1]
[1733898989570,7.01607798,219.35,219.29,2.1]
[1733898990670,7.01607798,219.39,219.3,7.01607798]
[1733898991273,7.01607798,219.39,219.32,7.01607798]
[1733898991666,4.3105,219.49,219.32,7.01607798]
[1733898991667,2.1,219.47,219.32,7.01607798]
[1733898991863,7.01607798,219.41,219.34,7.01607798]
[1733898992170,7.01607798,219.41,219.35,2.1]
[1733898994475,2.2781,219.4,219.35,2.1]
[1733898995072,2.2782,219.39,219.35,2.1]
[1733898997769,2.2781,219.4,219.35,2.1]
[1733898997967,7.01607798,219.41,219.35,2.1]
[1733898999569,7.01607798,219.41,219.37,2.2784]
[1733899000173,2.2777,219.44,219.38,2.2783]
[1733899000372,2.9049,219.49,219.4,7.01607798]
[1733899000579,7.01607798,219.48,219.42,7.01607798]
[1733899000778,7.01607798,219.48,219.43,2.2777]
[1733899001374,7.01607798,219.5,219.42,7.01607798]
[1733899002078,7.01607798,219.5,219.44,7.01607798]
[1733899002281,7.01607798,219.5,219.45,2.2776]
[1733899002477,7.01607798,219.5,219.46,2.1]
[1733899002788,9.29287798,219.53,219.47,2.2774]
[1733899002971,1.393,219.56,219.46,2.1]
[1733899002972,7.01607798,219.49,219.46,2.1]
[1733899004579,7.01607798,219.47,219.44,2.1]
[1733899004780,7.01607798,219.45,219.43,2.1]
[1733899005684,9.29367798,219.45,219.43,2.1]
[1733899006185,9.29367798,219.45,219.38,2.2782]
[1733899006484,7.01607798,219.41,219.39,2.1]
[1733899007585,7.01607798,219.43,219.39,2.1]
[1733899008581,9.29387798,219.43,219.39,2.1]
[1733899010387,7.01607798,219.43,219.39,2.1]
[1733899011484,7.01607798,219.43,219.39,4.3782]
[1733899012088,9.29367798,219.45,219.39,4.3782]
[1733899012383,9.29367798,219.45,219.4,2.2781]
[1733899012788,9.29367798,219.45,219.39,4.3782]
[1733899014503,7.01607798,219.45,219.39,4.3782]
[1733899014696,2.2777,219.44,219.39,4.3782]
[1733899017694,3.5038,219.52,219.4,2.1]
[1733899017695,7.01607798,219.41,219.4,2.1]
[1733899017898,7.01607798,219.41,219.38,2.1]
[1733899018499,2.2782,219.39,219.38,2.1]
[1733899019101,7.01607798,219.39,219.36,2.1]
[1733899019800,2.2784,219.37,219.36,2.1]
[1733899021008,9.29437798,219.39,219.35,2.1]
[1733899021500,7.01607798,219.39,219.35,2.1]
[1733899021699,2.2783,219.38,219.35,2.1]
[1733899022602,7.01607798,219.39,219.34,2.1]
[1733899022603,2.2784,219.37,219.34,2.1]
[1733899023501,7.01607798,219.39,219.34,2.1]
[1733899024599,2.2783,219.38,219.33,2.1]
[1733899026802,2.2787,219.34,219.29,2.2792]
[1733899027000,2.2787,219.34,219.29,9.29527798]
[1733899027304,2.2787,219.34,219.3,2.1]
[1733899028006,7.01607798,219.35,219.3,2.1]
[1733899028701,2.2788,219.33,219.3,2.1]
[1733899029109,7.01607798,219.35,219.3,2.1]
[1733899030611,9.29467798,219.35,219.3,4.3791]
[1733899031805,7.01607798,219.35,219.3,2.1]
[1733899032010,2.2787,219.34,219.3,2.1]
[1733899036612,2.2788,219.33,219.3,2.1]
[1733899038318,1.3812,219.44,219.31,7.01607798]
[1733899038514,7.01607798,219.41,219.34,2.2787]
[1733899038815,12.86161709,219.4,219.35,2.1]
[1733899039006,7.01607798,219.41,219.35,2.1]
[1733899039207,12.86149119,219.4,219.35,2.1]
[1733899039408,2.2781,219.4,219.35,4.3786]
[1733899040215,7.01607798,219.41,219.36,2.2785]
[1733899040415,7.01607798,219.41,219.36,9.29457798]
[1733899041220,7.01607798,219.41,219.36,7.01607798]
[1733899041221,9.29407798,219.41,219.36,7.01607798]
[1733899041818,1.4263,219.46,219.38,7.01607798]
[1733899042012,12.85987326,219.45,219.38,7.01607798]
[1733899042220,8.44237798,219.46,219.38,7.01607798]
[1733899042917,2.2777,219.45,219.39,2.2782]
[1733899043114,8.44237798,219.46,219.4,2.1]
[1733899043823,2.2776,219.45,219.4,2.1]
[1733899044322,2.2776,219.45,219.4,4.3781]
[1733899046125,2.2775,219.46,219.41,2.278]
[1733899046419,7.01607798,219.48,219.4,9.11607798]
[1733899047417,189.8228249,219.59,219.4,9.11607798]
[1733899047418,2.2772,219.49,219.43,2.2778]
[1733899047823,7.01607798,219.5,219.42,7.01607798]
[1733899048119,9.29317798,219.5,219.45,2.2776]
[1733899048319,9.29317798,219.5,219.46,2.1]
[1733899049214,2.2772,219.49,219.46,2.1]
[1733899050016,7.01607798,219.48,219.41,7.76337303]
[1733899050217,7.01607798,219.48,219.42,2.1]
[1733899050520,7.01607798,219.46,219.43,2.1]
[1733899051116,2.2776,219.45,219.43,2.1]
[1733899052718,7.01607798,219.44,219.35,7.01607798]
[1733899052923,7.01607798,219.42,219.36,2.1]
[1733899053728,7.01607798,219.42,219.37,2.1]
[1733899054021,7.01607798,219.38,219.27,2.8212]
[1733899054219,7.01607798,219.38,219.3,7.01607798]
[1733899054430,2.2786,219.36,219.31,2.279]
[1733899054728,2.2786,219.36,219.33,5.53847714]
[1733899054924,2.2786,219.36,219.34,2.1]
[1733899055224,7.01607798,219.38,219.34,2.1]
[1733899055427,9.29447798,219.38,219.34,2.1]
[1733899055822,7.01607798,219.38,219.34,2.1]
[1733899056716,2.2784,219.37,219.34,2.1]
[1733899058624,2.2782,219.39,219.34,2.1]
[1733899058820,7.01607798,219.4,219.34,9.11607798]
[1733899059024,7.01607798,219.42,219.34,9.11607798]
[1733899059422,2.278,219.41,219.34,9.11607798]
[1733899060525,2.278,219.41,219.35,2.2786]
[1733899060825,4.3106,219.47,219.34,2.1]
[1733899060826,2.2783,219.38,219.34,2.1]
[1733899061027,7.01607798,219.38,219.34,2.1]
[1733899061421,2.2785,219.36,219.34,2.1]
[1733899065329,7.01607798,219.45,219.37,2.2784]
[1733899065624,12.86412663,219.44,219.37,9.29447798]
[1733899065831,7.01607798,219.45,219.37,9.29447798]
[1733899066027,9.94087798,219.47,219.39,7.01607798]
[1733899066225,9.94087798,219.47,219.4,2.1]
[1733899066422,8.46147798,219.47,219.4,2.1]
[1733899067427,2.2776,219.45,219.4,4.3781]
[1733899067628,1.3614,219.52,219.41,7.01607798]
[1733899067629,7.01607798,219.48,219.41,7.01607798]
[1733899068526,7.01607798,219.5,219.43,7.01607798]
[1733899068730,12.85864592,219.49,219.43,7.01607798]
[1733899068930,7.01607798,219.5,219.43,7.01607798]
[1733899069130,12.85857301,219.49,219.43,7.01607798]
[1733899069331,7.01607798,219.5,219.43,7.01607798]
[1733899069731,2.2772,219.49,219.43,9.29387798]
[1733899071339,7.01607798,219.5,219.44,2.2776]
[1733899071539,7.01607798,219.5,219.45,2.1]
[1733899072840,9.29317798,219.5,219.45,2.1]
[1733899076139,1.4599,219.56,219.45,9.11607798]
[1733899076341,2.2769,219.52,219.45,9.11607798]
[1733899077045,2.2767,219.54,219.48,2.2772]
[1733899077248,2.2767,219.54,219.49,7.01607798]
[1733899077540,2.2767,219.54,219.5,2.1]
[1733899077940,2.2763,219.58,219.52,2.2768]
[1733899078744,7.01607798,219.61,219.53,7.01607798]
[1733899078942,12.8337962,219.6,219.53,9.29277798]
[1733899079146,7.01607798,219.61,219.53,9.29277798]
[1733899079348,2.276,219.6,219.55,2.2765]
[1733899079545,2.276,219.6,219.56,2.1]
[1733899079745,2.276,219.6,219.57,2.1]
[1733899080044,2.2757,219.63,219.57,2.1]
[1733899080243,7.01607798,219.64,219.57,2.1]
[1733899080646,2.8219,219.66,219.57,2.1]
[1733899080945,7.01607798,219.64,219.57,2.1]
[1733899081145,7.01607798,219.64,219.57,4.3763]
[1733899081342,7.01607798,219.64,219.57,2.1]
[1733899081741,9.29167798,219.64,219.57,2.1]
[1733899082148,2.2753,219.68,219.61,2.2759]
[1733899082348,7.01607798,219.68,219.62,2.1]
[1733899082942,7.01607798,219.7,219.62,9.11607798]
[1733899083145,7.01607798,219.71,219.63,2.2757]
[1733899083847,7.01607798,219.71,219.64,7.01607798]
[1733899084646,2.275,219.7,219.64,7.01607798]
[1733899085246,2.8169,219.75,219.66,7.01607798]
[1733899085446,12.78273694,219.74,219.67,2.1]
[1733899085651,7.01607798,219.74,219.67,2.1]
[1733899085951,7.01607798,219.74,219.68,7.01607798]
[1733899086550,1.469,219.81,219.72,7.01607798]
[1733899086752,1.469,219.81,219.73,2.1]
[1733899086753,7.01607798,219.79,219.73,2.1]
[1733899086956,9.29017798,219.79,219.73,2.1]
[1733899087151,7.01607798,219.79,219.73,2.1]
[1733899087455,7.53165173,219.85,219.73,2.1]
[1733899087657,9.29017798,219.79,219.73,2.1]
[1733899088656,7.01607798,219.79,219.73,2.1]
[1733899089157,7.53165173,219.85,219.73,2.1]
[1733899089158,10.93657559,219.82,219.73,2.1]
[1733899089844,2.2742,219.78,219.73,2.1]
[1733899090353,10.93657559,219.82,219.73,2.1]
[1733899092654,2.2744,219.76,219.73,2.1]
[1733899093057,10.93657559,219.82,219.73,2.1]
[1733899094455,2.2738,219.82,219.73,2.1]
[1733899094655,1.3439,219.87,219.73,4.3746]
[1733899094656,10.93657559,219.85,219.73,4.3746]
[1733899095258,2.2739,219.81,219.74,2.2746]
[1733899097166,10.93657559,219.85,219.76,2.2743]
[1733899097167,2.2737,219.83,219.76,2.2743]
[1733899097363,10.93657559,219.85,219.76,2.2743]
[1733899097563,10.93657559,219.85,219.7,1.4624]
[1733899097770,10.93657559,219.82,219.71,2.1]
[1733899097969,10.93657559,219.82,219.72,2.1]
[1733899098664,2.1,219.85,219.72,2.1]
[1733899098869,10.93657559,219.76,219.72,2.1]
[1733899099371,10.93657559,219.79,219.72,2.1]
[1733899100173,10.93657559,219.82,219.72,2.1]
[1733899100368,10.93657559,219.85,219.72,13.03657559]
[1733899100766,10.93657559,219.85,219.74,2.2746]
[1733899100767,2.274,219.8,219.74,2.2746]
[1733899103664,2.2741,219.79,219.72,15.31127559]
[1733899104372,2.2741,219.79,219.73,2.2747]
[1733899105065,1.3402,219.86,219.72,13.03657559]
[1733899105269,2.2739,219.81,219.75,2.2745]
[1733899105466,1.3439,219.87,219.75,10.93657559]
[1733899105663,1.3439,219.87,219.76,2.2743]
[1733899105664,2.2737,219.83,219.76,2.2743]
[1733899105866,2.2737,219.83,219.77,2.1]
[1733899106867,2.2737,219.83,219.77,4.3742]
[1733899107970,1.3439,219.87,219.74,5.55309062]
[1733899108169,10.93657559,219.85,219.75,2.1]
[1733899109175,2.2737,219.82,219.75,2.1]
[1733899109375,10.93657559,219.85,219.75,2.1]
[1733899109775,2.274,219.8,219.75,2.1]
[1733899111475,10.93657559,219.85,219.75,2.1]
[1733899111674,2.2741,219.79,219.75,2.1]
[1733899111870,10.93657559,219.85,219.75,2.1]
[1733899112068,12.7094702,219.84,219.75,2.1]
[1733899112272,10.93657559,219.85,219.75,2.1]
[1733899112469,12.71581417,219.84,219.75,2.1]
[1733899112669,10.93657559,219.85,219.75,2.1]
[1733899112875,2.2741,219.79,219.75,2.1]
[1733899113077,10.93657559,219.85,219.76,2.1]
[1733899113274,23.60221919,219.84,219.76,2.1]
[1733899113481,22.17961919,219.83,219.76,2.1]
[1733899113674,1.4226,219.84,219.64,4.2397]
[1733899113675,23.66010092,219.82,219.69,10.93657559]
[1733899113979,12.72379491,219.81,219.7,2.1]
[1733899114174,12.72379491,219.8,219.7,2.1]
[1733899114378,2.2746,219.74,219.7,2.1]
[1733899114977,2.2746,219.74,219.69,2.275]
[1733899115280,2.2746,219.74,219.7,2.1]
[1733899115581,2.2748,219.72,219.7,2.1]
[1733899116176,2.2749,219.71,219.67,13.21187559]
[1733899116477,1.3627,219.79,219.68,2.1]
[1733899116675,12.74919094,219.78,219.73,10.93657559]
[1733899116880,191.9228249,219.87,219.73,10.93657559]
[1733899116881,1.3627,219.86,219.74,2.1]
[1733899117071,1.3627,219.86,219.76,10.93657559]
[1733899117271,1.3627,219.86,219.77,2.2742]
[1733899117472,1.3627,219.86,219.77,13.21077559]
[1733899117473,9.4839248,219.85,219.77,13.21077559]
[1733899117672,1.3627,219.86,219.77,13.21077559]
[1733899118079,2.1,219.92,219.77,13.21077559]
[1733899118080,189.8228249,219.92,219.83,2.2736]
[1733899118283,12.76043167,219.91,219.84,2.1]
[1733899118580,5.3252527,219.97,219.84,2.1]
[1733899118784,2.2729,219.9,219.84,2.1]
[1733899119279,5.3252527,219.97,219.84,2.1]
[1733899119474,22.25753038,219.96,219.84,4.3735]
[1733899119674,22.25753038,219.95,219.84,4.3735]
[1733899119979,12.76551777,219.94,219.84,4.3735]
[1733899120283,2.2729,219.91,219.84,2.1]
[1733899123579,2.2729,219.91,219.84,4.3735]
[1733899124081,2.2729,219.9,219.84,4.3735]
[1733899124674,12.37537559,219.98,219.84,2.1]
[1733899124878,2.2728,219.91,219.85,2.2734]
[1733899126577,2.273,219.9,219.84,2.1]
[1733899126781,17.91339333,219.98,219.85,2.14]
[1733899127084,22.31131674,219.97,219.85,2.14]
[1733899127281,2.273,219.9,219.85,2.14]
[1733899128788,17.91339333,219.98,219.85,2.14]
[1733899128983,2.273,219.89,219.85,2.14]
[1733899129580,22.32792705,219.88,219.81,2.14]
[1733899129887,22.32792705,219.87,219.81,2.14]
[1733899130088,22.32792705,219.86,219.81,2.14]
[1733899130283,12.80588419,219.85,219.81,2.14]
[1733899130587,12.80588419,219.84,219.81,2.14]
[1733899130788,10.93657559,219.89,219.81,2.14]
[1733899130989,22.33948404,219.88,219.81,2.14]
[1733899131188,22.33948404,219.87,219.81,4.4138]
[1733899131380,2.14,219.94,219.82,10.93657559]
[1733899131579,22.34214483,219.93,219.82,10.93657559]
[1733899131891,22.34214483,219.92,219.82,10.93657559]
[1733899132082,2.14,219.97,219.82,10.93657559]
[1733899132083,22.34214483,219.91,219.82,10.93657559]
[1733899132388,12.81402785,219.9,219.82,10.93657559]
[1733899132584,12.81402785,219.9,219.85,10.93657559]
[1733899132789,17.91339333,219.98,219.86,2.14]
[1733899132988,22.33909594,219.97,219.86,2.14]
[1733899133190,17.91339333,219.98,219.86,2.14]
[1733899133191,22.33909594,219.96,219.86,2.14]
[1733899133391,22.33909594,219.95,219.86,4.4133]
[1733899133593,22.33909594,219.94,219.86,4.4133]
[1733899133791,22.33909594,219.93,219.86,4.4133]
[1733899133991,22.33909594,219.92,219.86,4.4133]
[1733899134297,12.81229283,219.91,219.87,2.2732]
[1733899134488,12.37537559,219.98,219.87,2.2732]
[1733899134688,2.2727,219.93,219.87,2.2732]
[1733899134985,12.81095632,219.92,219.88,10.93657559]
[1733899135188,1.4388,219.98,219.88,10.93657559]